Cogmind - Beta 9.6 @@@ ROGUE MODE // 2020.06.21 @ 00:33:09 Player: Vectis Result: Escaped! Performance ------------- Evolutions (9) 4500 Regions Visited (28) 5600 Robots Destroyed (176) 880 Value Destroyed (6513) 6513 Prototype IDs (55) 1100 Alien Tech Used (1) 200 Bonus (11504) 11504 TOTAL SCORE: 30297 Bonus ------- High Alert Combat Kills 180 Follower Combat Kills 2808 Network Hubs Disabled 800 Aligned with FarCom 300 Met Data Miner 300 Met Imprinter 300 Met Warlord at Base 500 MAIN.C Attacked Warlord 500 Built Enhanced Grunts 300 A7 Reached Mainframe 300 Met R17 at Cetus 500 Met Warlord at Research 2000 Win 3000 Friendly Fire -284 Cogmind --------- Core Integrity 1220/1600 Matter 271/300 Energy 583/600 System Corruption 17% Temperature Cool (12) Movement Hovering (60) Location To Epsilon Eridani Parts ------- > --- POWER (2) -------- Quantum Reactor Quantum Reactor > --- PROPULSION (4) --- Cooled Antigrav System Combat Antigrav System Combat Antigrav System Combat Antigrav System > --- UTILITY (18) ----- Medium Storage Unit Improved Melee Analysis Suite Advanced Melee Analysis Suite Advanced Melee Analysis Suite Advanced Melee Analysis Suite Advanced Melee Analysis Suite Experimental Target Analyzer Improved Core Analyzer Advanced Armor Integrity Analyzer Microactuators Reaction Control System Advanced Phase Shifter Improved Cloaking Device Improved Utility Shielding Advanced Hacking Suite Advanced Hacking Suite Advanced System Shield Advanced System Shield > --- WEAPON (2) ------- Centrium Greatsword > --- INVENTORY (8) ---- Improved Linear Gravjet Combat Antigrav System Combat Antigrav System Combat Antigrav System Centrium Greatsword Peak State ------------ > --- POWER ------------ Vortex Chain Reactor > --- PROPULSION ------- Cooled Antigrav System Combat Antigrav System Combat Antigrav System Combat Antigrav System > --- UTILITY ---------- Medium Storage Unit Improved Melee Analysis Suite Advanced Melee Analysis Suite Advanced Melee Analysis Suite Advanced Melee Analysis Suite Advanced Melee Analysis Suite Experimental Target Analyzer Improved Core Analyzer Advanced Armor Integrity Analyzer Microactuators Reaction Control System Advanced Phase Shifter Improved Cloaking Device Improved Utility Shielding Advanced Hacking Suite Advanced Hacking Suite Advanced System Shield Advanced System Shield > --- WEAPON ----------- Centrium Greatsword > --- INVENTORY -------- Quantum Reactor Quantum Reactor Improved Linear Gravjet Combat Antigrav System Combat Antigrav System Combat Antigrav System Centrium Greatsword [Rating: 176] Favorites ----------- Power Improved Deuterium Engine Engine Improved Deuterium Engine Power Core Light Nuclear Core Reactor Vortex Chain Reactor Propulsion Aerolev Unit Treads Light Treads Wheel Compact Wheel Hover Unit Aerolev Unit Utility Advanced Melee Analysis Suite Device Long-range Terrain Scanner Storage Medium Storage Unit Processor Advanced Melee Analysis Suite Hackware Hacking Suite Protection Experimental Propulsion Shielding Weapon Greatsword Energy Gun Advanced Beam Rifle Energy Cannon Beam Cannon Ballistic Gun Light Assault Rifle Launcher Grenade Launcher Special Weapon Advanced Remote Datajack Slashing Weapon Greatsword Build | -11 -10 -10 -10 -9 -8 -7 -7 -7 -7 -6 -6 -6 -6 -6 -5 -5 -5 -5 -5 -5 -4 -4 -4 -3 -3 -2 -1 -1 ------- Run | Scr Mat Min Exi Min Mat Fac Low Low Zio Pro Fac Low Low Dat Pro Fac Ext Cet Arc Hub Fac Upp War Pro Res Res Acc Com Slots Evolved 18 | . . . . . 4 2 . . . . 2 . . . . 2 . . . . 2 . . . 2 2 2 . Power 1 | . . . . . . . . . . . . . . . . . . . . . . . . . 1 . . . Propulsion 2 | . . . . . 1 . . . . . . . . . . . . . . . . . . . 1 . . . Utility 15 | . . . . . 3 2 . . . . 2 . . . . 2 . . . . 2 . . . . 2 2 . Weapon . | . . . . . . . . . . . . . . . . . . . . . . . . . . . . . Parts Attached 225 | 8 9 1 1 . 46 18 3 4 . . 10 2 1 3 1 16 16 2 5 11 16 . 9 . 16 10 12 5 Power 17 | 1 2 . . . 4 1 . . . . 1 . . . . 1 1 1 . 1 1 . . . 1 . . 2 Engine 10 | 1 2 . . . 2 1 . . . . 1 . . . . 1 1 . . 1 . . . . . . . . Core 2 | . . . . . 2 . . . . . . . . . . . . . . . . . . . . . . . Reactor 5 | . . . . . . . . . . . . . . . . . . 1 . . 1 . . . 1 . . 2 Propulsion 48 | 3 3 1 . . 15 5 . . . . . . . . . 3 6 . . 3 1 . 2 . 2 . 4 . Treads 22 | 2 3 1 . . 14 . . . . . . . . . . . 2 . . . . . . . . . . . Leg . | . . . . . . . . . . . . . . . . . . . . . . . . . . . . . Wheel 1 | 1 . . . . . . . . . . . . . . . . . . . . . . . . . . . . Hover 25 | . . . . . 1 5 . . . . . . . . . 3 4 . . 3 1 . 2 . 2 . 4 . Flight . | . . . . . . . . . . . . . . . . . . . . . . . . . . . . . Utility 118 | 2 2 . 1 . 6 11 3 4 . . 8 2 1 3 1 11 7 1 2 5 11 . 7 . 13 10 5 2 Device 54 | . . . . . . 4 3 4 . . 1 1 1 2 1 4 5 . 2 2 5 . 5 . 8 3 3 . Storage 9 | 2 2 . 1 . 1 2 . . . . . . . . . . . . . . . . . . 1 . . . Processor 26 | . . . . . 1 2 . . . . 4 1 . 1 . 5 2 . . 1 3 . 2 . . 4 . . Hackware 14 | . . . . . . 3 . . . . 3 . . . . 2 . . . 1 1 . . . 1 1 1 1 Protection 15 | . . . . . 4 . . . . . . . . . . . . 1 . 1 2 . . . 3 2 1 1 Artifact . | . . . . . . . . . . . . . . . . . . . . . . . . . . . . . Weapon 42 | 2 2 . . . 21 1 . . . . 1 . . . . 1 2 . 3 2 3 . . . . . 3 1 Energy Gun 2 | . . . . . 2 . . . . . . . . . . . . . . . . . . . . . . . Energy Cannon 2 | . 1 . . . 1 . . . . . . . . . . . . . . . . . . . . . . . Ballistic Gun 19 | 2 1 . . . 13 . . . . . . . . . . . . . 2 1 . . . . . . . . Ballistic Cannon . | . . . . . . . . . . . . . . . . . . . . . . . . . . . . . Launcher 5 | . . . . . 5 . . . . . . . . . . . . . . . . . . . . . . . Special Weapon 1 | . . . . . . . . . . . . . . . . . . . . . . . . . . . 1 . Impact Weapon . | . . . . . . . . . . . . . . . . . . . . . . . . . . . . . Slashing Weapon 13 | . . . . . . 1 . . . . 1 . . . . 1 2 . 1 1 3 . . . . . 2 1 Piercing Weapon . | . . . . . . . . . . . . . . . . . . . . . . . . . . . . . Special Melee Weapon . | . . . . . . . . . . . . . . . . . . . . . . . . . . . . . Unidentified Prototypes 16 | . . . . . 4 . . . . . . . 1 . . 1 . 1 1 1 1 . 4 . 2 . . . Parts Lost 30 | . 2 . . . 11 . . . . . . . . . . . 8 . . 1 2 . . . 3 1 2 . Power 4 | . 1 . . . 2 . . . . . . . . . . . 1 . . . . . . . . . . . Propulsion 8 | . . . . . 4 . . . . . . . . . . . 3 . . . 1 . . . . . . . Utility 9 | . . . . . . . . . . . . . . . . . 3 . . . 1 . . . 3 1 1 . Weapon 9 | . 1 . . . 5 . . . . . . . . . . . 1 . . 1 . . . . . . 1 . Highest Loss Streak 6 | . 1 . . . 3 . . . . . . . . . . . 6 . . 1 2 . . . 3 1 1 . Average Slot Usage (%) 93 | . 99 100 100 100 98 96 92 92 92 92 89 93 89 87 93 90 90 94 93 94 96 . 94 95 82 84 84 92 Engine 5 | . 13 14 14 14 5 . 7 7 7 7 5 6 6 6 6 5 4 . . 2 2 . . . . . . . Reactor 1 | . . . . . . . . . . . . . . . . . . 4 5 2 2 . 5 5 4 4 3 5 Treads 7 | . 28 28 28 28 26 . . . . . . . . . . . . . . . . . . . . . . . Hover 13 | . . . . . . 22 23 23 23 23 20 20 18 18 18 15 15 16 16 16 14 . 15 15 13 12 11 15 Device 9 | . . . . . . 14 15 15 15 15 6 13 12 11 12 5 11 11 11 12 10 . 13 15 10 12 11 15 Storage 11 | . 28 28 28 28 25 7 7 7 7 7 6 6 6 6 6 5 5 5 5 5 5 . 5 5 3 4 3 3 Processor 20 | . . . . . 9 9 7 7 7 7 10 29 31 32 37 40 35 38 38 35 36 . 35 35 28 31 30 30 Hackware 10 | . . . . . . 19 23 23 23 23 32 9 6 6 6 11 11 9 5 7 15 . 11 10 7 6 10 13 Protection 2 | . . . . . 10 . . . . . . . . . . . . 1 5 4 2 . 5 5 7 8 6 2 Energy Cannon 1 | . . 14 14 14 1 . . . . . . . . . . . . . . . . . . . . . . . Ballistic Gun 4 | . 27 14 14 14 15 11 . . . . . . . . . . . . . . . . . . . . . . Slashing Weapon 3 | . . . . . . 1 7 7 7 7 6 6 6 6 6 5 4 5 4 5 7 . 5 5 4 4 2 2 Naked Turns . | . . . . . . . . . . . . . . . . . . . . . . . . . . . . . Heaviest Build 117 | 13 71 71 71 71 117 112 33 33 27 27 27 27 27 27 27 29 31 44 44 46 38 31 39 39 77 73 60 64 Greatest Support 110 | 40 40 40 40 40 65 65 33 33 33 33 33 33 33 33 33 40 53 48 48 48 36 36 52 52 76 76 110 110 Greatest Overweight (x) 5 | . 1 1 1 1 5 2 . . . . . . . . . . 1 . . 1 1 . . . 1 . . . Average Overweight (x) . | . . 1 1 1 1 . . . . . . . . . . . . . . . . . . . . . . . Largest Inventory Capacity 28 | 8 20 20 20 20 28 28 8 8 8 8 8 8 8 8 8 8 8 8 8 8 8 8 8 8 8 8 8 8 Average Capacity 11 | 5 12 20 20 20 26 8 8 8 8 8 8 8 8 8 8 8 8 8 8 8 8 8 8 8 7 8 8 8 Most Carried 28 | 4 18 20 20 19 28 20 8 8 8 8 8 8 8 8 7 8 8 8 8 8 8 8 8 8 8 8 8 8 Average Carried 10 | 3 10 18 19 19 24 8 8 8 8 8 7 7 8 7 7 7 6 7 7 7 6 8 7 8 6 7 7 6 Final Capacity 28 | 8 20 20 20 20 28 8 8 8 8 8 8 8 8 8 8 8 8 8 8 8 8 8 8 8 8 8 8 8 Final Carried 20 | 4 17 20 19 19 20 8 8 8 8 8 7 8 8 7 7 8 7 8 8 8 8 8 8 8 8 7 8 6 Class Distribution -------------------- 26% | Hacker-Scout 19% | Hauler-Mutant 14% | Hacker-Gladiator 12% | Scout 4% | Gladiator 4% | Hacker-Sprinter 4% | Scavenger-Mutant 3% | Commander-Gladiator 3% | Mutant 3% | Hacker-Mutant Dominant Class ---------------- Mutant | -10/Materials Hauler-Mutant | -10/Mines Hauler-Mutant | -10/Exiles Hauler-Mutant | -9/Mines Hauler-Mutant | -8/Materials Hacker-Mutant | -7/Factory Hacker-Scout | -7/Lower Caves Hacker-Scout | -7/Lower Caves Hacker-Scout | -7/Zion Hacker-Scout | -6/Proximity Caves Hacker-Scout | -6/Factory Scout | -6/Lower Caves Scout | -6/Lower Caves Scout | -6/Data Miner Scout | -5/Proximity Caves Hacker-Scout | -5/Factory Hacker-Scout | -5/Extension Commander-Gladiator | -5/Cetus Commander-Scout | -5/Archives Scout | -5/Hub_04(d) Hacker-Sprinter | -4/Factory Hacker-Sprinter | -4/Upper Caves Hacker-Gladiator | -4/Warlord Hacker-Gladiator | -3/Proximity Caves Gladiator | -3/Research Hacker-Gladiator | -2/Research Hacker-Gladiator | -1/Access Hacker-Gladiator | -1/Command Resources | -11 -10 -10 -10 -9 -8 -7 -7 -7 -7 -6 -6 -6 -6 -6 -5 -5 -5 -5 -5 -5 -4 -4 -4 -3 -3 -2 -1 -1 ----------- Run | Scr Mat Min Exi Min Mat Fac Low Low Zio Pro Fac Low Low Dat Pro Fac Ext Cet Arc Hub Fac Upp War Pro Res Res Acc Com Matter Collected 3987 | 263 420 139 10 . 1161 298 32 20 20 . 10 110 20 . 40 164 227 67 63 114 178 . 51 . 223 80 208 69 Remotely . | . . . . . . . . . . . . . . . . . . . . . . . . . . . . . Salvage Created 8486 | 60 687 65 . . 2064 237 . 54 . . 35 126 . . 24 351 1330 . 113 468 595 . . . 695 314 1164 104 Parts 428 | 2 40 9 . . 115 10 . 1 . . 1 2 . . . 18 52 . 3 14 26 . . . 32 22 80 1 Haulers Intercepted 8 | . 2 . . . 4 . . . . . . . . . . . 1 . . . . . . . 1 . . . Recyclers Shooed 9 | . 2 . . . 1 . . . . . . . . . . 2 1 . . . 1 . . . 2 . . . Parts Field Recycled . | . . . . . . . . . . . . . . . . . . . . . . . . . . . . . Retrieved Matter . | . . . . . . . . . . . . . . . . . . . . . . . . . . . . . Parts Self-Destructed 61 | . . . . . . . 1 1 . . . 2 . . 4 . . . . . . . 53 . . . . . Prevented 15 | . . . . . . . 1 . . . . . . . . . . . . . . . 14 . . . . . Kills | -11 -10 -10 -10 -9 -8 -7 -7 -7 -7 -6 -6 -6 -6 -6 -5 -5 -5 -5 -5 -5 -4 -4 -4 -3 -3 -2 -1 -1 ------- Run | Scr Mat Min Exi Min Mat Fac Low Low Zio Pro Fac Low Low Dat Pro Fac Ext Cet Arc Hub Fac Upp War Pro Res Res Acc Com Combat Hostiles Destroyed 104 | . 9 5 . . 35 2 . 1 . . . 1 . . 1 2 14 . . 2 4 . . . 7 4 16 1 Melee 54 | . . . . . 1 . . 1 . . . 1 . . 1 2 14 . . 2 4 . . . 7 4 16 1 Guns 36 | . 7 2 . . 25 2 . . . . . . . . . . . . . . . . . . . . . . Cannons 9 | . 2 3 . . 4 . . . . . . . . . . . . . . . . . . . . . . . AOE 5 | . . . . . 5 . . . . . . . . . . . . . . . . . . . . . . . Classes Destroyed 15 | 1 7 1 . . 2 1 . 1 . . . . . . . . 1 . . . . . . . 1 . . . Worker 20 | . 2 . . . 5 2 . . . . . . . . . 2 . . . 4 . . . . 2 . 1 2 Builder 5 | . 2 . . . 1 . . . . . . . . . . 1 . . . . . . . . 1 . . . Tunneler 2 | . 1 . . . 1 . . . . . . . . . . . . . . . . . . . . . . . Hauler 8 | . 2 . . . 4 . . . . . . . . . . . 1 . . . . . . . 1 . . . Recycler 14 | 1 1 . . . 3 1 . . . . . . . . . 1 3 . . 1 2 . . . . . 1 . Operator 9 | . 1 . . . 2 . . . . . . . . . . 1 2 . 3 . . . . . . . . . Watcher 12 | . 1 . . . 3 1 . . . . 1 . . . . . 1 . . 2 2 . . . 1 . . . Swarmer 20 | . . 5 . . 4 . . . . . . . . . 1 . 4 . . 1 . . . . 1 . 4 . Grunt 40 | . 9 . . . 23 . . . . . . . . . . 1 5 . . . . . . . 2 . . . Brawler 1 | . . . . . . . . . . . . . . . . . . . . . . . . . 1 . . . Duelist 1 | . . . . . 1 . . . . . . . . . . . . . . . . . . . . . . . Sentry 20 | . . . . . 7 1 . . . . . 1 . . . 1 4 . . 1 1 . . . 1 2 1 . Hunter 7 | . . . . . . . . 1 . . . . . . . . . . . . 2 . . . . . 3 1 Programmer 14 | . . . . . . 1 . . . . . . . . . . . . . . 1 . . . 2 2 8 . Behemoth 1 | . . . . . . . . . . . . . . . . . 1 . . . . . . . . . . . Packrat 1 | . . . . . . . . . . . . 1 . . . . . . . . . . . . . . . . Guerrilla 1 | . . . . . . . . . . . . . . . . . . . . 1 . . . . . . . . Best Kill Streak 11 | 1 3 3 . . 11 3 . 1 . . 1 1 . . 1 2 5 . 3 2 2 . . . 3 3 4 2 Combat Bots Only 7 | . 2 3 . . 7 1 . 1 . . . 1 . . 1 1 3 . . 1 2 . . . 2 3 4 1 Max Kills in Single Turn 6 | 1 1 1 . . 6 2 . 1 . . 1 1 . . 1 1 1 . 1 2 1 . . . 1 1 1 1 Gunslinging . | . . . . . . . . . . . . . . . . . . . . . . . . . . . . . Exploded 3 | . . . . . 3 . . . . . . . . . . . . . . . . . . . . . . . Melee 1 | . . . . . 1 . . 1 . . . 1 . . 1 1 1 . . 1 1 . . . 1 1 1 1 Uniques/NPCs Destroyed . | . . . . . . . . . . . . . . . . . . . . . . . . . . . . . Combat | -11 -10 -10 -10 -9 -8 -7 -7 -7 -7 -6 -6 -6 -6 -6 -5 -5 -5 -5 -5 -5 -4 -4 -4 -3 -3 -2 -1 -1 -------- Run | Scr Mat Min Exi Min Mat Fac Low Low Zio Pro Fac Low Low Dat Pro Fac Ext Cet Arc Hub Fac Upp War Pro Res Res Acc Com Damage Taken 8230 | . 360 135 . . 2885 214 . 56 . 31 . 8 . 48 49 102 1006 7 . 586 149 . 55 . 498 229 1344 468 Core 1448 | . . 14 . . 457 106 . 21 . . . . . 48 17 13 90 . . 132 46 . . . 73 51 284 96 Absorbed by Shields 164 | . . . . . . . . . . . . . . . . . 105 6 . . . . 53 . . . . . Core Remaining (%) 82 | 100 . . . 94 16 . . . . 81 . . . . 92 . . . . 76 . . . 96 94 96 . 76 Volleys Fired 274 | 6 75 10 . . 159 20 . . . . . . . . . . . . . 2 . . . . . . 2 . Largest 2 | 2 2 2 . . 2 2 . . . . . . . . . . . . . 1 . . . . . . 1 . Hottest 98 | 40 80 80 . . 98 46 . . . . . . . . . . . . . 35 . . . . . . 50 . Shots Fired 538 | 12 150 20 . . 312 40 . . . . . . . . . . . . . 2 . . . . . . 2 . Gun 485 | 12 145 10 . . 276 40 . . . . . . . . . . . . . 2 . . . . . . . . Cannon 44 | . 5 10 . . 29 . . . . . . . . . . . . . . . . . . . . . . . Launcher 7 | . . . . . 7 . . . . . . . . . . . . . . . . . . . . . . . Special 2 | . . . . . . . . . . . . . . . . . . . . . . . . . . . 2 . Kinetic 468 | 12 145 10 . . 259 40 . . . . . . . . . . . . . 2 . . . . . . . . Thermal 61 | . 5 10 . . 46 . . . . . . . . . . . . . . . . . . . . . . . Explosive 7 | . . . . . 7 . . . . . . . . . . . . . . . . . . . . . . . Electromagnetic . | . . . . . . . . . . . . . . . . . . . . . . . . . . . . . Robot Hit Streak 26 | 10 15 6 . . 26 11 . . . . . . . . . . . . . . . . . . . . 8 . Robot Miss Streak 4 | 1 4 4 . . 3 1 . . . . . . . . . . . . . . . . . . . . . . Penetration Max . | . . . . . . . . . . . . . . . . . . . . . . . . . . . . . Secondary Targets 2 | . . . . . 2 . . . . . . . . . . . . . . . . . . . . . . . Max Gunslinging Chain 1 | . . . . . 1 . . . . . . . . . . . . . . . . . . . . . . . Shots Hit Robots 580 | 10 106 10 . . 229 29 . 1 . . 3 3 . 1 2 16 49 1 4 12 15 . 1 . 29 10 43 6 Core Hits 269 | 2 47 5 . . 104 10 . 1 . . 1 1 . . 1 7 24 . 3 12 9 . . . 13 5 23 1 Critical Hits 25 | . . . . . 2 . . . . . . . . . . 1 5 . . . 1 . 1 . 6 2 6 1 Critical Kills 8 | . . . . . . . . . . . . . . . . . 2 . . . 1 . . . 3 1 1 . Critical Parts Destroyed 13 | . . . . . 2 . . . . . . . . . . 1 3 . . . . . 1 . 1 1 4 . Melee Attacks 499 | . . . . . . 2 7 29 5 12 9 29 7 9 14 52 63 1 4 24 29 . 2 . 52 22 77 50 Impact . | . . . . . . . . . . . . . . . . . . . . . . . . . . . . . Slashing 499 | . . . . . . 2 7 29 5 12 9 29 7 9 14 52 63 1 4 24 29 . 2 . 52 22 77 50 Piercing . | . . . . . . . . . . . . . . . . . . . . . . . . . . . . . Sneak Attacks 43 | . . . . . . 1 . . . . 1 1 . 1 . 7 12 . 2 5 4 . . . 4 1 2 2 Combat Hostiles 6 | . . . . . . . . . . . . . . . . . 4 . . . 2 . . . . . . . Follow-up Attacks 1 | . . . . . . . . . . . . . . . . . . . . . 1 . . . . . . . Damage Inflicted 25754 | 76 958 159 . . 4168 695 . 71 . . 277 296 . 195 113 1843 4547 64 599 1623 1244 . 87 . 2974 1067 3904 794 Guns 4258 | 75 887 29 . . 2722 545 . . . . . . . . . . . . . . . . . . . . . . Cannons 764 | . 69 130 . . 565 . . . . . . . . . . . . . . . . . . . . . . . Explosions 1091 | . . . . . 878 . . . . . . . . . . . . . . 213 . . . . . . . . Melee 19560 | . . . . . . 150 . 71 . . 277 296 . 195 113 1843 4536 64 599 1410 1244 . 75 . 2922 1067 3904 794 Ramming 81 | 1 2 . . . 3 . . . . . . . . . . . 11 . . . . . 12 . 52 . . . Kinetic 4010 | 75 887 29 . . 2474 545 . . . . . . . . . . . . . . . . . . . . . . Thermal 1012 | . 69 130 . . 813 . . . . . . . . . . . . . . . . . . . . . . . Explosive 878 | . . . . . 878 . . . . . . . . . . . . . . . . . . . . . . . Electromagnetic 213 | . . . . . . . . . . . . . . . . . . . . 213 . . . . . . . . Impact . | . . . . . . . . . . . . . . . . . . . . . . . . . . . . . Slashing 19560 | . . . . . . 150 . 71 . . 277 296 . 195 113 1843 4536 64 599 1410 1244 . 75 . 2922 1067 3904 794 Piercing . | . . . . . . . . . . . . . . . . . . . . . . . . . . . . . Highest Corruption 17 | . . . . . . 1 1 1 1 . . . . . . 3 3 3 3 4 1 1 1 . 12 . 17 17 Average Corruption 4 | . . . . . . 1 1 1 1 . . . . . . 3 3 3 3 3 1 1 1 . 11 . 5 17 Corruption Purged . | . . . . . . . . . . . . . . . . . . . . . . . . . . . . . Effects 171 | . . . . . . 1 2 5 1 . . . . . . 13 23 5 6 9 3 . . . 34 . 30 39 Message Errors 34 | . . . . . . 1 . 2 1 . . . . . . 3 6 1 3 1 . . . . 3 . 5 8 Matter Fused 42 | . . . . . . . . . . . . . . . . 4 11 4 1 3 . . . . 5 . 10 4 Heat Flow Errors 11 | . . . . . . . . . . . . . . . . 3 1 . 1 . . . . . 2 . 1 3 Energy Discharges 23 | . . . . . . . . 1 . . . . . . . 1 2 . . 3 2 . . . 6 . 4 4 Parts Rejected 2 | . . . . . . . . . . . . . . . . . . . . . . . . . . . 1 1 Data Loss (minor) 16 | . . . . . . . 2 2 . . . . . . . 1 2 . 1 2 1 . . . 2 . 2 1 Data Loss (major) 1 | . . . . . . . . . . . . . . . . . . . . . . . . . . . . 1 Alerts 4 | . . . . . . . . . . . . . . . . . . . . . . . . . 2 . . 2 Misdirections 14 | . . . . . . . . . . . . . . . . . . . . . . . . . 5 . 2 7 Targeting Errors 24 | . . . . . . . . . . . . . . . . 1 1 . . . . . . . 9 . 5 8 Overload Shots . | . . . . . . . . . . . . . . . . . . . . . . . . . . . . . Overflow Damage 4523 | . . . . . 16 110 . . . . 139 166 . 75 44 394 656 14 203 713 142 . . . 693 279 452 427 Projectiles 5 | . . . . . 5 . . . . . . . . . . . . . . . . . . . . . . . Explosions 53 | . . . . . 11 . . . . . . . . . . . . . . 42 . . . . . . . . Melee 4465 | . . . . . . 110 . . . . 139 166 . 75 44 394 656 14 203 671 142 . . . 693 279 452 427 Knockbacks . | . . . . . . . . . . . . . . . . . . . . . . . . . . . . . Impact . | . . . . . . . . . . . . . . . . . . . . . . . . . . . . . Kinetic . | . . . . . . . . . . . . . . . . . . . . . . . . . . . . . Secondary . | . . . . . . . . . . . . . . . . . . . . . . . . . . . . . Self-Inflicted Damage 209 | . . . . . 93 . . . . . . . . . . . 5 . . 79 . . 6 . 26 . . . Shots 6 | . . . . . 4 . . . . . . . . . . . . . . 2 . . . . . . . . Rammed 7 | 2 1 . . . 1 . . . . . . . . . . . 1 . . . . . 1 . 1 . . . Targets Rammed 8 | 2 1 . . . 2 . . . . . . . . . . . 1 . . . . . 1 . 1 . . . Kicked . | . . . . . . . . . . . . . . . . . . . . . . . . . . . . . Crushed 1 | . . . . . 1 . . . . . . . . . . . . . . . . . . . . . . . Highest Temperature 306 | . 155 140 . . 306 . . . . . . . . . . 266 230 . 235 . . . . . 191 . 117 219 Average Temperature 82 | . 42 75 . . 76 . . . . . . . . . . 105 116 . 136 . . . . . 91 . 45 106 Received Heat Transfer 1775 | . 204 . . . 1260 . . . . . . . . 6 . 54 197 . . 12 . . . . 21 21 . . Effects 2 | . . . . . 2 . . . . . . . . . . . . . . . . . . . . . . . Interference 1 | . . . . . 1 . . . . . . . . . . . . . . . . . . . . . . . Matter Decay 1 | . . . . . 1 . . . . . . . . . . . . . . . . . . . . . . . Siege Activations . | . . . . . . . . . . . . . . . . . . . . . . . . . . . . . Robots Corrupted . | . . . . . . . . . . . . . . . . . . . . . . . . . . . . . Combat Hostiles . | . . . . . . . . . . . . . . . . . . . . . . . . . . . . . Parts Fried 4 | . . . . . . . . . . . . . . . . . 2 . . 2 . . . . . . . . Impact Corruptions 2 | . . . . . . . . . . . . . . . . . 1 . . . . . . . 1 . . . Robots Melted . | . . . . . . . . . . . . . . . . . . . . . . . . . . . . . Combat Hostiles . | . . . . . . . . . . . . . . . . . . . . . . . . . . . . . Parts Melted 2 | . . 2 . . . . . . . . . . . . . . . . . . . . . . . . . . Heat Transferred 1813 | . 148 259 . . 1406 . . . . . . . . . . . . . . . . . . . . . . . Parts Sabotaged . | . . . . . . . . . . . . . . . . . . . . . . . . . . . . . Parts Stolen . | . . . . . . . . . . . . . . . . . . . . . . . . . . . . . Parts Stripped . | . . . . . . . . . . . . . . . . . . . . . . . . . . . . . Power Chain Reactions . | . . . . . . . . . . . . . . . . . . . . . . . . . . . . . Missiles Intercepted . | . . . . . . . . . . . . . . . . . . . . . . . . . . . . . Alert | -11 -10 -10 -10 -9 -8 -7 -7 -7 -7 -6 -6 -6 -6 -6 -5 -5 -5 -5 -5 -5 -4 -4 -4 -3 -3 -2 -1 -1 ------- Run | Scr Mat Min Exi Min Mat Fac Low Low Zio Pro Fac Low Low Dat Pro Fac Ext Cet Arc Hub Fac Upp War Pro Res Res Acc Com Peak Influence 1447 | 5 154 138 . 15 621 449 . . . . 102 . . . . 150 442 1068 569 1447 917 . . . 181 148 332 800 Average Influence 235 | 1 69 101 . . 300 253 . . . . 75 . . . . 47 136 697 535 688 456 . . . 80 76 164 548 Maximum Alert Level 4 | . . . . . 2 2 . . . . . . . . . . 2 3 2 4 3 . . . . . 1 3 Low Security (%) 63 | 100 100 100 . 100 40 26 . . . . 100 . . . . 100 85 . . 8 41 . . . 100 100 59 . Level 1 14 | . . . . . 26 63 . . . . . . . . . . 9 17 . 5 5 . . . . . 40 24 Level 2 13 | . . . . . 32 9 . . . . . . . . . . 5 11 100 40 . . . . . . . 52 Level 3 7 | . . . . . . . . . . . . . . . . . . 70 . 33 52 . . . . . . 22 Level 4 . | . . . . . . . . . . . . . . . . . . . . 10 . . . . . . . . Level 5 . | . . . . . . . . . . . . . . . . . . . . . . . . . . . . . High Security . | . . . . . . . . . . . . . . . . . . . . . . . . . . . . . Max Security . | . . . . . . . . . . . . . . . . . . . . . . . . . . . . . Squads Dispatched 48 | . 3 . . . 7 5 . . . . 2 . . . . 2 5 . . 8 3 . . . 1 1 8 3 Investigation 17 | . 2 . . . 1 2 . . . . 1 . . . . . 3 . . 3 2 . . . . 1 1 1 Extermination 11 | . . . . . . 2 . . . . 1 . . . . 1 . . . . 1 . . . 1 . 4 1 Reinforcement 10 | . 1 . . . 2 . . . . . . . . . . 1 2 . . 3 . . . . . . . 1 Assault 1 | . . . . . . . . . . . . . . . . . . . . 1 . . . . . . . . Garrison 9 | . . . . . 4 1 . . . . . . . . . . . . . 1 . . . . . . 3 . Intercept . | . . . . . . . . . . . . . . . . . . . . . . . . . . . . . Construction Impeded . | . . . . . . . . . . . . . . . . . . . . . . . . . . . . . Haulers Reinforced 2 | . . . . . . . . . . . . . . . . 1 . . . 1 . . . . . . . . Stealth | -11 -10 -10 -10 -9 -8 -7 -7 -7 -7 -6 -6 -6 -6 -6 -5 -5 -5 -5 -5 -5 -4 -4 -4 -3 -3 -2 -1 -1 --------- Run | Scr Mat Min Exi Min Mat Fac Low Low Zio Pro Fac Low Low Dat Pro Fac Ext Cet Arc Hub Fac Upp War Pro Res Res Acc Com Distress Signals 29 | . 4 . . . 8 . . . . . . . . . . 3 3 2 . 1 1 . . . . 5 1 1 Communications Jammed . | . . . . . . . . . . . . . . . . . . . . . . . . . . . . . Distress Signals . | . . . . . . . . . . . . . . . . . . . . . . . . . . . . . Times Spotted 274 | . 22 7 . 2 57 4 . 2 . 3 5 1 . 3 7 8 32 13 5 22 9 . 13 . 11 5 28 15 Peak Tracking Total 13 | . 4 3 . 2 8 2 . 1 . 3 2 1 . 3 7 6 5 4 2 10 5 . 13 . 5 3 6 3 Tactical Retreats 20 | . 2 1 . . 4 1 . . . . . . . . 1 2 3 1 . 1 . . . . . . 3 1 Traps | -11 -10 -10 -10 -9 -8 -7 -7 -7 -7 -6 -6 -6 -6 -6 -5 -5 -5 -5 -5 -5 -4 -4 -4 -3 -3 -2 -1 -1 ------- Run | Scr Mat Min Exi Min Mat Fac Low Low Zio Pro Fac Low Low Dat Pro Fac Ext Cet Arc Hub Fac Upp War Pro Res Res Acc Com Traps Triggered 9 | . 2 . . . . 1 . . . . . . . . . 1 2 . . . . . . . 1 . 1 1 Indirectly . | . . . . . . . . . . . . . . . . . . . . . . . . . . . . . Trap Hack Attempts . | . . . . . . . . . . . . . . . . . . . . . . . . . . . . . Triggered . | . . . . . . . . . . . . . . . . . . . . . . . . . . . . . Disarmed 13 | . 3 . . . . 4 . . . . . . . . . . . . . 6 . . . . . . . . Reprogrammed 4 | . . . . . . . . . . . . . . . . . . . . . . . . . . . 4 . Reused 1 | . . . . . . . . . . . . . . . . . . . . . . . . . . . 1 . Traps Extracted . | . . . . . . . . . . . . . . . . . . . . . . . . . . . . . Installed . | . . . . . . . . . . . . . . . . . . . . . . . . . . . . . Triggered 10 | . . . . . . . 5 . . . . . . . . . . . . . . . 4 . . . 1 . Exploded 1 | . . . . . 1 . . . . . . . . . . . . . . . . . . . . . . . Machines | -11 -10 -10 -10 -9 -8 -7 -7 -7 -7 -6 -6 -6 -6 -6 -5 -5 -5 -5 -5 -5 -4 -4 -4 -3 -3 -2 -1 -1 ---------- Run | Scr Mat Min Exi Min Mat Fac Low Low Zio Pro Fac Low Low Dat Pro Fac Ext Cet Arc Hub Fac Upp War Pro Res Res Acc Com Machines Disabled 38 | . . . . . 4 . . . 3 . . . . 1 . 1 3 1 2 20 . . . . . . 1 2 Max in Single Turn 18 | . . . . . 1 . . . 1 . . . . 1 . 1 1 . . 18 . . . . . . 1 1 Garrison Access 8 | . . . . . . 1 . . . . . . . . . 1 . . . 1 . . . . 3 2 . . Network Hub 4 | . . . . . . . . . . . . . . . . . . . . 4 . . . . . . . . Machines Sabotaged 1 | . . . . . . . . . . . . . . . . . . . . 1 . . . . . . . . Garrisons Compromised . | . . . . . . . . . . . . . . . . . . . . . . . . . . . . . Overloaded Fab Kills . | . . . . . . . . . . . . . . . . . . . . . . . . . . . . . Fab Network Shutdowns . | . . . . . . . . . . . . . . . . . . . . . . . . . . . . . Hacking | -11 -10 -10 -10 -9 -8 -7 -7 -7 -7 -6 -6 -6 -6 -6 -5 -5 -5 -5 -5 -5 -4 -4 -4 -3 -3 -2 -1 -1 --------- Run | Scr Mat Min Exi Min Mat Fac Low Low Zio Pro Fac Low Low Dat Pro Fac Ext Cet Arc Hub Fac Upp War Pro Res Res Acc Com Machines Accessed 92 | . 5 . 2 . 6 10 1 . . . 6 1 . 4 . 8 13 2 . 5 8 . 3 . 8 3 4 3 Terminals 54 | . 4 . . . 3 7 . . . . 4 . . . . 5 12 2 . 4 5 . . . 2 2 3 1 Fabricators 3 | . . . . . . 1 . . . . 1 . . . . . . . . . 1 . . . . . . . Repair Stations 12 | . . . . . 1 1 . . . . 1 . . . . 2 1 . . . 1 . . . 2 . 1 2 Recycling Units 2 | . 1 . . . 1 . . . . . . . . . . . . . . . . . . . . . . . Scanalyzers 2 | . . . . . . . . . . . . . . . . . . . . . 1 . . . 1 . . . Garrison Access 8 | . . . . . 1 1 . . . . . . . . . 1 . . . 1 . . . . 3 1 . . Total Hacks 362 | . 14 . 2 . 16 34 1 . . . 31 1 . 23 . 23 45 3 . 14 60 . 7 . 36 14 23 15 Successful 231 | . 6 . 2 . 10 19 1 . . . 20 1 . 23 . 15 24 2 . 8 45 . 7 . 26 5 12 5 Failed 128 | . 7 . . . 6 14 . . . . 11 . . . . 8 21 1 . 6 14 . . . 10 9 11 10 Catastrophic 21 | . . . . . . 2 . . . . 3 . . . . 2 3 . . 2 . . . . . 3 2 4 Database Lockouts 4 | . 1 . . . . 1 . . . . . . . . . . . . . . 2 . . . . . . . Manual 170 | . 10 . 1 . 8 17 . . . . 17 . . . . 10 22 2 . 10 34 . 1 . 18 5 12 3 Terminals 227 | . 13 . . . 8 25 . . . . 19 . . . . 13 38 3 . 12 41 . . . 21 9 18 7 Fabricators 14 | . . . . . . 2 . . . . 8 . . . . . . . . . 4 . . . . . . . Repair Stations 51 | . . . . . 4 3 . . . . 4 . . . . 6 7 . . . 5 . . . 9 . 5 8 Recycling Units 2 | . 1 . . . 1 . . . . . . . . . . . . . . . . . . . . . . . Scanalyzers 12 | . . . . . . . . . . . . . . . . . . . . . 10 . . . 2 . . . Garrison Access 22 | . . . . . 3 4 . . . . . . . . . 4 . . . 2 . . . . 4 5 . . Terminal Hacks 119 | . 3 . 2 . 1 11 1 . . . 7 1 . 23 . 5 14 1 . 4 22 . 7 . 10 2 5 . Record 13 | . . . 1 . . . . . . . . . . 11 . . . . . . . . . . . 1 . . Part Schematic 15 | . . . . . . 1 . . . . 3 . . 4 . . . . . . 5 . . . 1 1 . . Robot Schematic 5 | . . . . . . . . . . . . . . 5 . . . . . . . . . . . . . . Robot Analysis 7 | . 1 . . . . . . . . . . . . . . 1 1 . . . . . . . 4 . . . Prototype ID Bank 8 | . . . . . . . . . . . . . . 3 . . . . . . . . 5 . . . . . Open Door 11 | . . . . . . . 1 . . . . 1 . . . . 6 1 . . . . 2 . . . . . Level Access Points 2 | . . . . . . . . . . . . . . . . . . . . 1 . . . . 1 . . . Branch Access Points 4 | . . . . . . 1 . . . . . . . . . 1 . . . . 1 . . . . . 1 . Emergency Access Points 2 | . . . . . . 1 . . . . . . . . . . . . . . 1 . . . . . . . Machine Index 3 | . . . . . . . . . . . 1 . . . . . . . . . . . . . 1 . 1 . Terminal Index 3 | . . . . . . 1 . . . . . . . . . . . . . 1 . . . . 1 . . . Repair Station Index 1 | . . . . . . . . . . . . . . . . 1 . . . . . . . . . . . . Recycling Unit Index 1 | . . . . . . . . . . . . . . . . 1 . . . . . . . . . . . . Alert Level 7 | . . . . . . . . . . . . . . . . . 1 . . . 5 . . . . . 1 . Unreport Threat 7 | . . . . . . 1 . . . . . . . . . . 1 . . . 5 . . . . . . . Locate Traps 7 | . . . . . . 2 . . . . 2 . . . . . 2 . . . 1 . . . . . . . Disarm Traps 3 | . 1 . . . . 1 . . . . . . . . . . . . . 1 . . . . . . . . Reprogram Traps 1 | . . . . . . . . . . . . . . . . . . . . . . . . . . . 1 . Maintenance Status 1 | . . . . . . . . . . . . . . . . . . . . . . . . . 1 . . . Patrol Status 1 | . . . . . . 1 . . . . . . . . . . . . . . . . . . . . . . Recall Investigation 6 | . . . . . . 2 . . . . 1 . . . . . 2 . . . 1 . . . . . . . Recall Reinforcements 2 | . 1 . . . . . . . . . . . . . . . 1 . . . . . . . . . . . Hauler Manifests 2 | . . . . . 1 . . . . . . . . . . . . . . . 1 . . . . . . . Registered Components 1 | . . . . . . . . . . . . . . . . . . . . . . . . . 1 . . . Registered Prototypes 1 | . . . . . . . . . . . . . . . . . . . . . 1 . . . . . . . Zone Layout 4 | . . . . . . . . . . . . . . . . 1 . . . 1 1 . . . . . 1 . EX-Prototype ID Bank 1 | . . . 1 . . . . . . . . . . . . . . . . . . . . . . . . . Fabricator Hacks 10 | . . . . . . 2 . . . . 6 . . . . . . . . . 2 . . . . . . . Load Schematic 5 | . . . . . . 1 . . . . 3 . . . . . . . . . 1 . . . . . . . Build 5 | . . . . . . 1 . . . . 3 . . . . . . . . . 1 . . . . . . . Repair Station Hacks 39 | . . . . . 4 2 . . . . 4 . . . . 5 6 . . . 4 . . . 6 . 4 4 Scan Component 20 | . . . . . 2 1 . . . . 2 . . . . 3 3 . . . 2 . . . 3 . 2 2 Repair 19 | . . . . . 2 1 . . . . 2 . . . . 2 3 . . . 2 . . . 3 . 2 2 Recycling Unit Hacks . | . . . . . . . . . . . . . . . . . . . . . . . . . . . . . Scanalyzer 11 | . . . . . . . . . . . . . . . . . . . . . 9 . . . 2 . . . Insert Component 5 | . . . . . . . . . . . . . . . . . . . . . 4 . . . 1 . . . Analyze 6 | . . . . . . . . . . . . . . . . . . . . . 5 . . . 1 . . . Garrison Access Hacks 7 | . . . . . 1 1 . . . . . . . . . 1 . . . . . . . . 3 1 . . Unlock Access 1 | . . . . . 1 . . . . . . . . . . . . . . . . . . . . . . . Seal Access 6 | . . . . . . 1 . . . . . . . . . 1 . . . . . . . . 3 1 . . Unauthorized Hacks 45 | . 3 . . . 4 3 . . . . 3 . . . . 4 4 1 . 4 8 . . . 5 2 3 1 Terminals 39 | . 2 . . . 3 2 . . . . 1 . . . . 4 4 1 . 4 7 . . . 5 2 3 1 Track 4 | . . . . . . . . . . . . . . . . . . . . . 2 . . . 1 . 1 . Assimilate 3 | . . . . . . . . . . . 1 . . . . 2 . . . . . . . . . . . . Botnet 17 | . 2 . . . 1 2 . . . . . . . . . 2 3 . . 1 3 . . . 2 1 . . Disrupt 10 | . . . . . 1 . . . . . . . . . . . 1 1 . 1 2 . . . 1 . 2 1 Operators 2 | . . . . . 1 . . . . . . . . . . . . . . . . . . . 1 . . . Sabotage 2 | . . . . . . . . . . . . . . . . . . . . 2 . . . . . . . . Search 1 | . . . . . . . . . . . . . . . . . . . . . . . . . . 1 . . Fabricators 3 | . . . . . . . . . . . 2 . . . . . . . . . 1 . . . . . . . Prioritize 1 | . . . . . . . . . . . 1 . . . . . . . . . . . . . . . . . Siphon 2 | . . . . . . . . . . . 1 . . . . . . . . . 1 . . . . . . . Repair Stations . | . . . . . . . . . . . . . . . . . . . . . . . . . . . . . Recycling Units 2 | . 1 . . . 1 . . . . . . . . . . . . . . . . . . . . . . . Tunnel 2 | . 1 . . . 1 . . . . . . . . . . . . . . . . . . . . . . . Scanalyzers . | . . . . . . . . . . . . . . . . . . . . . . . . . . . . . Garrison Access 1 | . . . . . . 1 . . . . . . . . . . . . . . . . . . . . . . Reprogram 1 | . . . . . . 1 . . . . . . . . . . . . . . . . . . . . . . Data Cores Recovered 1 | . . . . . . . . . . . . . . . . 1 . . . . . . . . . . . . Used . | . . . . . . . . . . . . . . . . . . . . . . . . . . . . . Hacking Detections 59 | . 3 . . . 4 10 . . . . 4 . . . . 7 9 1 . 3 6 . . . 4 1 4 3 Full Trace Events 7 | . . . . . . 1 . . . . 1 . . . . . 2 . . 1 1 . . . . . . 1 Feedback Events . | . . . . . . . . . . . . . . . . . . . . . . . . . . . . . Feedback Blocked . | . . . . . . . . . . . . . . . . . . . . . . . . . . . . . Robot Schematics Acquired 5 | . . . . . . . . . . . . . . 5 . . . . . . . . . . . . . . Robots Built . | . . . . . . . . . . . . . . . . . . . . . . . . . . . . . Matter . | . . . . . . . . . . . . . . . . . . . . . . . . . . . . . Time . | . . . . . . . . . . . . . . . . . . . . . . . . . . . . . Total Robot Build Rating . | . . . . . . . . . . . . . . . . . . . . . . . . . . . . . Part Schematics Acquired 20 | . . . . . . 1 . . . . 3 . . 4 . . . . . . 9 . . . 2 1 . . Parts Built 5 | . . . . . . 1 . . . . 3 . . . . . . . . . 1 . . . . . . . Matter 1022 | . . . . . . 168 . . . . 569 . . . . . . . . . 285 . . . . . . . Time 364 | . . . . . . 42 . . . . 246 . . . . . . . . . 76 . . . . . . . Total Part Build Rating 24 | . . . . . . 4 . . . . 15 . . . . . . . . . 5 . . . . . . . Parts Repaired 19 | . . . . . 2 1 . . . . 2 . . . . 2 3 . . . 2 . . . 3 . 2 2 Time 586 | . . . . . 58 30 . . . . 88 . . . . 105 69 . . . 76 . . . 53 . 46 61 Parts Recycled . | . . . . . . . . . . . . . . . . . . . . . . . . . . . . . Recycled Matter . | . . . . . . . . . . . . . . . . . . . . . . . . . . . . . Retrieved Matter . | . . . . . . . . . . . . . . . . . . . . . . . . . . . . . Retrieved Components . | . . . . . . . . . . . . . . . . . . . . . . . . . . . . . Parts Scanalyzed 5 | . . . . . . . . . . . . . . . . . . . . . 4 . . . 1 . . . Part Schematics Acquired 5 | . . . . . . . . . . . . . . . . . . . . . 4 . . . 1 . . . Parts Damaged . | . . . . . . . . . . . . . . . . . . . . . . . . . . . . . Bothacking | -11 -10 -10 -10 -9 -8 -7 -7 -7 -7 -6 -6 -6 -6 -6 -5 -5 -5 -5 -5 -5 -4 -4 -4 -3 -3 -2 -1 -1 ------------ Run | Scr Mat Min Exi Min Mat Fac Low Low Zio Pro Fac Low Low Dat Pro Fac Ext Cet Arc Hub Fac Upp War Pro Res Res Acc Com Used RIF Installer . | . . . . . . . . . . . . . . . . . . . . . . . . . . . . . Robots Hacked 2 | . . . . . . . . . . . . . . . . . . . . . . . . . . . 2 . Non-combat . | . . . . . . . . . . . . . . . . . . . . . . . . . . . . . Combat . | . . . . . . . . . . . . . . . . . . . . . . . . . . . . . Robot Hacks Applied . | . . . . . . . . . . . . . . . . . . . . . . . . . . . . . Manual 2 | . . . . . . . . . . . . . . . . . . . . . . . . . . . 2 . Relay Couplers Released 5 | . . . . . . . . . . . . . . . . . . . . 2 . . . . . 3 . . Machine Destruction 5 | . . . . . . . . . . . . . . . . . . . . 2 . . . . . 3 . . Robots Rewired 18 | . . . . . . . . . . . . . . . . . 13 . . . . . 5 . . . . . Allies Hacked . | . . . . . . . . . . . . . . . . . . . . . . . . . . . . . Hacks Repelled . | . . . . . . . . . . . . . . . . . . . . . . . . . . . . . Allies | -11 -10 -10 -10 -9 -8 -7 -7 -7 -7 -6 -6 -6 -6 -6 -5 -5 -5 -5 -5 -5 -4 -4 -4 -3 -3 -2 -1 -1 -------- Run | Scr Mat Min Exi Min Mat Fac Low Low Zio Pro Fac Low Low Dat Pro Fac Ext Cet Arc Hub Fac Upp War Pro Res Res Acc Com Total Allies 47 | . . . . 3 . 2 . . 3 . 1 . . . . 1 25 5 . . . . 5 . . . 2 . Largest Group 18 | . . . . 3 2 2 . . 3 3 1 1 . . . 1 18 16 14 8 . . 5 . . . 2 2 Highest-Rated Group 889 | . . . . 40 32 32 . . 87 87 26 26 . . . 26 669 889 847 550 . . 274 . . . 444 444 Highest-Rated Ally 222 | . . . . 16 16 16 . . 31 31 26 26 . . . 26 156 156 156 94 . . 60 . . . 222 222 Total Orders 7 | . . . . . . . . . . . . . . . . 3 . . . . . . 4 . . . . . STAY 3 | . . . . . . . . . . . . . . . . 2 . . . . . . 1 . . . . . FOLLOW 3 | . . . . . . . . . . . . . . . . 1 . . . . . . 2 . . . . . GUARD 1 | . . . . . . . . . . . . . . . . . . . . . . . 1 . . . . . Ally Attacks 350 | . . . . 2 11 5 . . . 10 . . . . . . 85 100 31 68 . . . . . . 2 36 Total Damage 11393 | . . . . 33 156 77 . . . 205 . . . . . . 2074 2188 955 2231 . . . . . . 209 3265 Kills 84 | . . . . . . . . . . . . . . . . . 20 25 5 20 . . . . . . 1 13 Allies Corrupted . | . . . . . . . . . . . . . . . . . . . . . . . . . . . . . Allies Melted . | . . . . . . . . . . . . . . . . . . . . . . . . . . . . . Intel | -11 -10 -10 -10 -9 -8 -7 -7 -7 -7 -6 -6 -6 -6 -6 -5 -5 -5 -5 -5 -5 -4 -4 -4 -3 -3 -2 -1 -1 ------- Run | Scr Mat Min Exi Min Mat Fac Low Low Zio Pro Fac Low Low Dat Pro Fac Ext Cet Arc Hub Fac Upp War Pro Res Res Acc Com Robot Analysis Total 7 | . 1 . . . . . . . . . . . . . . 1 1 . . . . . . . 4 . . . Derelict Logs Recovered 10 | . . . . 1 . . 1 1 1 1 . 1 2 . 2 . . . . . . . . . . . . . Drone Launches 2 | . . . . . . . . . . . . . . . 2 . . . . . . . . . . . . . Drone Recoveries . | . . . . . . . . . . . . . . . . . . . . . . . . . . . . . Exploration | -11 -10 -10 -10 -9 -8 -7 -7 -7 -7 -6 -6 -6 -6 -6 -5 -5 -5 -5 -5 -5 -4 -4 -4 -3 -3 -2 -1 -1 ------------- Run | Scr Mat Min Exi Min Mat Fac Low Low Zio Pro Fac Low Low Dat Pro Fac Ext Cet Arc Hub Fac Upp War Pro Res Res Acc Com Turns Passed 20251 | 97 985 368 1003 433 2427 672 871 965 1199 555 336 516 448 730 375 1131 1351 359 235 741 654 7 570 183 845 679 1009 507 Spaces Moved 17848 | 47 433 171 550 237 924 999 632 590 1196 455 480 655 504 257 545 1488 1094 202 244 743 893 19 827 188 943 1232 952 348 Core 10 | 10 . . . . . . . . . . . . . . . . . . . . . . . . . . . . Treads 2371 | 36 433 171 550 237 924 4 . . . . . . . . . . 16 . . . . . . . . . . . Legs . | . . . . . . . . . . . . . . . . . . . . . . . . . . . . . Wheels 1 | 1 . . . . . . . . . . . . . . . . . . . . . . . . . . . . Hover 15466 | . . . . . . 995 632 590 1196 455 480 655 504 257 545 1488 1078 202 244 743 893 19 827 188 943 1232 952 348 Flight . | . . . . . . . . . . . . . . . . . . . . . . . . . . . . . Fastest Speed 32 | 50 160 180 180 180 175 42 42 42 42 42 42 42 42 42 42 38 38 62 62 32 32 32 32 38 33 45 43 60 Average Speed 61 | 135 168 180 180 180 181 44 42 42 42 42 42 42 42 42 42 41 48 62 62 54 33 32 35 45 43 45 45 60 Slowest Speed 260 | 160 180 180 180 180 260 175 42 42 42 42 42 42 42 42 42 45 180 62 62 112 116 32 41 46 96 45 60 60 Overloaded Moves . | . . . . . . . . . . . . . . . . . . . . . . . . . . . . . Propulsion Burnouts . | . . . . . . . . . . . . . . . . . . . . . . . . . . . . . Robots Hopped . | . . . . . . . . . . . . . . . . . . . . . . . . . . . . . Cave-ins Triggered 1 | . . . . . . . . . . . . . . . . . . . . . . . . . . . . 1 Exploration Rate (%) 52 | 3 65 25 90 37 69 22 72 68 88 53 6 76 57 77 78 35 85 75 98 65 24 5 92 46 29 38 19 12 Regions Visited 28 Branch Regions 19 Pre-discovered Areas 8 | . 1 . 1 1 1 . . . 3 . . . . 1 . . . . . . . . . . . . . . Known Exits Taken 16 | . . . . . . 1 . . . 1 1 1 1 1 1 1 1 1 1 1 1 . . . 1 1 1 . Unknown Exits Taken 12 | 1 1 1 1 1 1 . 1 1 1 . . . . . . . . . . . . 1 1 1 . . . . Scrap Searched 15 | . . 1 . . . . 1 2 2 1 . 6 1 . 1 . . . . . . . . . . . . . Spaces Dug 277 | . . . . . 13 1 7 28 . 12 4 26 7 5 12 33 6 . . 9 10 . 1 . 21 12 27 43 Terrain Destroyed 639 | . . . . . 46 1 7 28 . 12 4 26 7 5 12 33 6 . . 338 10 . 1 . 21 12 27 43 Melee 264 | . . . . . . 1 7 28 . 12 4 26 7 5 12 33 6 . . 9 10 . 1 . 21 12 27 43 Projectile 2 | . . . . . 1 . . . . . . . . . . . . . . 1 . . . . . . . . AOE 373 | . . . . . 45 . . . . . . . . . . . . . . 328 . . . . . . . . Actions | -11 -10 -10 -10 -9 -8 -7 -7 -7 -7 -6 -6 -6 -6 -6 -5 -5 -5 -5 -5 -5 -4 -4 -4 -3 -3 -2 -1 -1 --------- Run | Scr Mat Min Exi Min Mat Fac Low Low Zio Pro Fac Low Low Dat Pro Fac Ext Cet Arc Hub Fac Upp War Pro Res Res Acc Com Total 25815 | 66 567 215 568 244 1387 1190 1221 1246 1882 794 594 837 725 861 662 1899 1823 434 319 1040 1210 19 1102 284 1307 1324 1421 574 Wait 6565 | . 28 30 4 8 184 121 580 624 682 326 89 148 212 591 102 325 544 225 61 242 258 1 232 97 275 51 354 171 Move 17818 | 46 432 170 549 236 923 998 631 589 1195 454 479 654 503 256 544 1487 1093 201 243 742 892 18 827 187 942 1231 950 346 Hop . | . . . . . . . . . . . . . . . . . . . . . . . . . . . . . Pick Up 127 | 3 16 3 6 . 34 7 . . . 1 2 2 . . . 5 4 2 2 7 7 . 3 . 9 3 11 . Fast Attach 109 | 8 4 . . . 14 6 . . . . 6 1 2 . . 12 9 2 2 2 7 . 7 . 8 8 8 3 Attach 62 | . 1 . . . 13 10 . . . . 3 . . 3 . 2 6 . 1 3 7 . 1 . 6 . 4 2 Detach 16 | 1 . . . . 1 . . . . . 1 . . 2 . 2 2 . . . 4 . . . 3 . . . Swap 55 | . 4 1 1 . 19 2 3 4 . . 1 1 . . 1 2 1 . 2 6 2 . 1 . 2 2 . . Drop 163 | . 6 1 8 . 38 24 . . . 1 4 2 1 . . 12 2 3 4 12 8 . 11 . 9 7 10 . Fire 274 | 6 75 10 . . 159 20 . . . . . . . . . . . . . 2 . . . . . . 2 . Melee 495 | . . . . . . 2 7 29 5 12 9 29 7 9 14 52 63 1 4 24 25 . 2 . 52 22 77 50 Ram 2 | . . . . . . . . . . . . . . . . . 1 . . . . . . . 1 . . . Kick . | . . . . . . . . . . . . . . . . . . . . . . . . . . . . . Crush 5 | 2 1 . . . 2 . . . . . . . . . . . . . . . . . . . . . . . Escape Stasis 14 | . . . . . . . . . . . . . . . . . 7 . . . . . . . . . 5 2 Rewire 109 | . . . . . . . . . . . . . . . . . 91 . . . . . 18 . . . . . Trap . | . . . . . . . . . . . . . . . . . . . . . . . . . . . . . Miscellaneous 1 | . . . . . . . . . . . . . . . 1 . . . . . . . . . . . . . Route ------- -11/Scrapyard -10/Materials (discovered 4 exits: [*Mat x3] / [*Min]) -10/Mines (discovered 2 exits: [*Mat] / *Exi) -10/Exiles -9/Mines -8/Materials (discovered 2 exits: *Fac / Gar) -7/Factory (discovered 3 exits: Fac / *Low x2) -7/Lower Caves -7/Lower Caves (discovered 2 exits: *Fac / [*Zio]) -7/Zion (discovered 2 exits: [*Dee] / [*Pro]) -6/Proximity Caves -6/Factory (discovered 3 exits: Fac x2 / *Low) -6/Lower Caves (discovered 2 exits: *Low / *Dat) -6/Lower Caves -6/Data Miner -5/Proximity Caves -5/Factory (discovered 7 exits: *Fac x3 / *Upp x2 / *Ext x2) -5/Extension (discovered 2 exits: *Fac / *Cet) -5/Cetus (discovered 2 exits: *Fac / *Arc) -5/Archives (discovered 3 exits: *Fac / *Hub x2) -5/Hub_04(d) (discovered 4 exits: *Fac x4) -4/Factory (discovered 4 exits: Res / *Upp x2 / Arm) -4/Upper Caves -4/Warlord -3/Proximity Caves -3/Research (discovered 3 exits: *Res x3) -2/Research (discovered 2 exits: *Acc / *Tes) -1/Access -1/Command To Epsilon Eridani History --------- Turn | Location | Event 3 | -11/Scrapyard | Discovered new exit (range 15) 98 | -11/Scrapyard | Entered Materials 199 | -10/Materials | Discovered new exit (range 4) 317 | -10/Materials | Build established: Mutant 384 | -10/Materials | Discovered new exit (range 12) 395 | -10/Materials | Central database locked down 933 | -10/Materials | Discovered new exit (range 13) 968 | -10/Materials | Build established: Hauler-Mutant 981 | -10/Materials | Discovered new exit (range 14) 1083 | -10/Materials | Entered Mines 1099 | -10/Mines | Assembled infested the area 1368 | -10/Mines | Discovered new exit (range 5) 1444 | -10/Mines | Deemed a non-threat by the Exiles lab entrance 1444 | -10/Mines | Discovered new exit (range 5) 1451 | -10/Mines | Entered Exiles 1507 | -10/Exiles | Met 8R-AWN 1591 | -10/Exiles | Met EX-HEX 1677 | -10/Exiles | Met EX-DEC 1690 | -10/Exiles | Learned location of Zion (-7) 1944 | -10/Exiles | Met EX-BIN 1964 | -10/Exiles | Aligned with FarCom system 1966 | -10/Exiles | Given EX-Vault access code 2011 | -10/Exiles | Opened EX-Vault 2020 | -10/Exiles | Found Cloak of Protection 2061 | -10/Exiles | Warned to stay clear of 0b10 Research branches 2206 | -10/Exiles | Visited The Gauntlet 2436 | -10/Exiles | Discovered new exit (range 12) 2454 | -10/Exiles | Left Exiles lab with Cloak of Protection 2454 | -10/Exiles | Entered Mines 2724 | -9/Mines | Assisted by bots powering up and referring to "LRC-V3" 2857 | -9/Mines | Discovered new exit (range 16) 2887 | -9/Mines | Entered Materials 2887 | -8/Materials | Accompanied by 2 allies 2887 | -8/Materials | Evolved 4 slots: Propulsion x1, Utility x3 3557 | -8/Materials | Build established: Scavenger-Mutant 3611 | -8/Materials | Discovered new exit (range 10) 3775 | -8/Materials | Repaired Hrd. Light Armor Plating 3802 | -8/Materials | Repaired Lgt. Treads 4026 | -8/Materials | Lost 3 parts (2n1w) 4031 | -8/Materials | Destroyed 7 combat bots 4254 | -8/Materials | Garrison activated, responded to threat 4397 | -8/Materials | Identified exit to Garrison 4485 | -8/Materials | Garrison activated, responded to threat 4488 | -8/Materials | Core integrity fell below 50% 4552 | -8/Materials | Build established: Hauler-Mutant 5003 | -8/Materials | Core integrity fell below 20% 5314 | -8/Materials | Entered Factory 5314 | -7/Factory | Evolved 2 slots: Utility x2 5405 | -7/Factory | Fabricated Lrn. Terrain Scanner (x1) 5432 | -7/Factory | Identified exit to Lower Caves 5639 | -7/Factory | Build established: Hacker-Mutant 5647 | -7/Factory | Garrison activated, responded to threat 5820 | -7/Factory | Central database locked down 5905 | -7/Factory | Discovered new exit (range 15) 5912 | -7/Factory | Repaired Aerolev Unit 5986 | -7/Factory | Entered Lower Caves 6036 | -7/Lower Caves | Encountered a Warlord checkpoint 6304 | -7/Lower Caves | Build established: Hacker-Scout 6452 | -7/Lower Caves | Discovered new exit (range 19) 6802 | -7/Lower Caves | Learned Factory emergency access door positions 6857 | -7/Lower Caves | Entered another Lower Caves area 7019 | -7/Lower Caves | Discovered new exit (range 8) 7435 | -7/Lower Caves | Discovered new exit (range 19) 7822 | -7/Lower Caves | Entered Zion 7919 | -7/Zion | Discovered new exit (range 21) 7936 | -7/Zion | System corruption cleaned by Quarantine Array 8011 | -7/Zion | Rebuked by Imprinter 8183 | -7/Zion | Learned 8 Factory zone layouts 8206 | -7/Zion | Learned location of Extension (-5) 8212 | -7/Zion | Given A8's code to call for help 8475 | -7/Zion | Discovered new exit (range 3) 8475 | -7/Zion | Saw the warning signs outside the Deep Caves entrance 8584 | -7/Zion | Gained Derelict followers 8603 | -7/Zion | Learned location of Warlord (-4) 9021 | -7/Zion | Entered Proximity Caves 9021 | -6/Proximity Caves | Accompanied by 3 allies 9022 | -6/Proximity Caves | Identified exit to Factory 9199 | -6/Proximity Caves | Received a Behemoth hack from an annoying Tinkerer 9324 | -6/Proximity Caves | Learned Factory terminal intel 9576 | -6/Proximity Caves | Entered Factory 9576 | -6/Factory | Evolved 2 slots: Utility x2 9577 | -6/Factory | Identified exit to Factory 9579 | -6/Factory | Loaded intel: 19 terminal locations 9649 | -6/Factory | Discovered new exit (range 24) 9724 | -6/Factory | Repaired Greatsword 9734 | -6/Factory | Fabricated Exp. Signal Interpreter (x1) 9784 | -6/Factory | Fabricated Adv. Melee Analysis Suite? 9791 | -6/Factory | Repaired Imp. Deuterium Engine 9861 | -6/Factory | Fabricated Imp. Maneuvering Thrusters? 9911 | -6/Factory | Identified exit to Lower Caves 9912 | -6/Factory | Entered Lower Caves 9912 | -6/Lower Caves | Accompanied by 1 ally 9914 | -6/Lower Caves | Attracted the attention of an 0b10 checkpoint 9921 | -6/Lower Caves | Identified exit to Lower Caves 10059 | -6/Lower Caves | A Derelict revealed a hidden shortcut to meet someone special 10061 | -6/Lower Caves | Identified exit to Data Miner 10298 | -6/Lower Caves | Encountered a Warlord checkpoint 10428 | -6/Lower Caves | Entered another Lower Caves area 10444 | -6/Lower Caves | Build established: Scout 10505 | -6/Lower Caves | Learned location of 1 exit from Factory 10577 | -6/Lower Caves | Found Alien Artifact 10577 | -6/Lower Caves | Identified Core Expander 10577 | -6/Lower Caves | Installed Core Expander, added new Utility slot 10633 | -6/Lower Caves | Discovered exit to Data Miner (range 23) 10700 | -6/Lower Caves | Learned Factory stockpile data 10876 | -6/Lower Caves | Entered Data Miner 10876 | -6/Data Miner | Discovered new exit (range 6) 10897 | -6/Data Miner | Met Data Miner 10906 | -6/Data Miner | Learned location of Section 7 (-3) 10906 | -6/Data Miner | Acquired the access code to Warlord's prototype stash 11106 | -6/Data Miner | Received God Mode back door access code from Data Miner 11502 | -6/Data Miner | Data Conduit disabled 11606 | -6/Data Miner | Identified exit to Proximity Caves 11606 | -6/Data Miner | Entered Proximity Caves 11649 | -5/Proximity Caves | Learned 4 Factory zone layouts 11931 | -5/Proximity Caves | Learned 4 Factory zone layouts 11937 | -5/Proximity Caves | Discovered exit to Factory (range 18) 11981 | -5/Proximity Caves | Entered Factory 11981 | -5/Factory | Evolved 2 slots: Utility x2 11982 | -5/Factory | Identified exit to Extension 11983 | -5/Factory | Identified exit to Factory 12021 | -5/Factory | Identified exit to Upper Caves 12022 | -5/Factory | Discovered exit to Factory (range 6) 12748 | -5/Factory | Build established: Hacker-Scout 13009 | -5/Factory | Repaired Broken Greatsword 13055 | -5/Factory | Repaired Lrn. Terrain Scanner 13112 | -5/Factory | Entered Extension 13383 | -5/Extension | Repaired Greatsword 13410 | -5/Extension | Repaired Imp. Maneuvering Thrusters 13461 | -5/Extension | Rescued a captive Derelict 13584 | -5/Extension | Rescued a captive Derelict 13816 | -5/Extension | Repaired Lrn. Terrain Scanner 13995 | -5/Extension | Spotted B-75 Beast 13997 | -5/Extension | Spotted B-75 Beast 14007 | -5/Extension | Destroyed B-75 Beast 14021 | -5/Extension | Allies destroyed B-75 Beast 14049 | -5/Extension | Lost 6 parts (1p3n1u1w) 14149 | -5/Extension | Rescued A7 14162 | -5/Extension | Rescued a captive Derelict 14167 | -5/Extension | Rescued a captive Derelict 14179 | -5/Extension | Rescued a captive Derelict 14228 | -5/Extension | Rescued a captive Derelict 14236 | -5/Extension | Rescued a captive Derelict 14297 | -5/Extension | Rescued a captive Derelict 14298 | -5/Extension | Rescued a captive Derelict 14325 | -5/Extension | Rescued a captive Derelict 14326 | -5/Extension | Rescued a captive Derelict 14410 | -5/Extension | Discovered exit to Factory (range 10) 14410 | -5/Extension | Discovered new exit (range 6) 14412 | -5/Extension | Disrupted transfer network 14420 | -5/Extension | Identified exit to Cetus 14463 | -5/Extension | Entered Cetus 14463 | -5/Cetus | Accompanied by 16 allies 14468 | -5/Cetus | Acquired a Cetus Manufacturing Module code from A7 14490 | -5/Cetus | Spotted Cetus Guard 14490 | -5/Cetus | Spotted Cetus Guard 14493 | -5/Cetus | Allies destroyed Cetus Guard 14497 | -5/Cetus | Allies destroyed Cetus Guard 14546 | -5/Cetus | Started Cetus Manufacturing Module 14551 | -5/Cetus | Escorted A7 to Cetus Mainframe 14571 | -5/Cetus | Manufactured an Enhanced Grunt 14575 | -5/Cetus | Discovered new exit (range 15) 14586 | -5/Cetus | Identified exit to Archives 14596 | -5/Cetus | Manufactured an Enhanced Grunt 14609 | -5/Cetus | Build established: Commander-Gladiator 14621 | -5/Cetus | Manufactured an Enhanced Grunt 14646 | -5/Cetus | Manufactured an Enhanced Grunt 14671 | -5/Cetus | Manufactured an Enhanced Grunt 14718 | -5/Cetus | Spotted Cetus Guard 14729 | -5/Cetus | Allies destroyed Cetus Guard 14735 | -5/Cetus | Discovered exit to Factory (range 16) 14739 | -5/Cetus | Met Revision 17 14822 | -5/Cetus | Entered Archives 14822 | -5/Archives | Accompanied by 14 allies 14831 | -5/Archives | Received a hacking code to weaken MAIN.C 14861 | -5/Archives | Discovered new exit (range 16) 14917 | -5/Archives | Discovered new exit (range 22) 14932 | -5/Archives | Discovered exit to Factory (range 14) 15048 | -5/Archives | Identified exit to Hub_04(d) 15057 | -5/Archives | Entered Hub_04(d) 15057 | -5/Hub_04(d) | Accompanied by 8 allies 15219 | -5/Hub_04(d) | Discovered exit to Factory (range 5) 15226 | -5/Hub_04(d) | Discovered exit to Factory (range 16) 15230 | -5/Hub_04(d) | Garrison activated, responded to threat 15330 | -5/Hub_04(d) | Discovered exit to Factory (range 15) 15397 | -5/Hub_04(d) | Found Prototype Processor 15397 | -5/Hub_04(d) | Identified Exp. Targeting Computer 15421 | -5/Hub_04(d) | Build established: Scout 15717 | -5/Hub_04(d) | Network Hub disabled 15717 | -5/Hub_04(d) | Network Hub disabled 15742 | -5/Hub_04(d) | Network Hub disabled 15742 | -5/Hub_04(d) | Network Hub disabled 15756 | -5/Hub_04(d) | Spotted Lightning 15758 | -5/Hub_04(d) | Spotted Lightning 15760 | -5/Hub_04(d) | Spotted Lightning 15764 | -5/Hub_04(d) | Spotted Lightning 15784 | -5/Hub_04(d) | Spotted Lightning 15784 | -5/Hub_04(d) | Spotted Lightning 15784 | -5/Hub_04(d) | Spotted Lightning 15798 | -5/Hub_04(d) | Entered Factory 15798 | -4/Factory | Evolved 2 slots: Utility x2 15988 | -4/Factory | Repaired Centrium Medium Armor Plating 16011 | -4/Factory | Repaired Greatsword 16066 | -4/Factory | Build established: Hacker-Sprinter 16105 | -4/Factory | Discovered new exit (range 20) 16142 | -4/Factory | Identified exit to Upper Caves 16142 | -4/Factory | Identified exit to Armory 16287 | -4/Factory | Central database locked down 16321 | -4/Factory | Spotted B-86 Titan 16323 | -4/Factory | Found Prototype Slashing Weapon 16323 | -4/Factory | Identified Centrium Greatsword 16326 | -4/Factory | Found Centrium Greatsword 16328 | -4/Factory | Found Centrium Greatsword 16379 | -4/Factory | Fabricated Exp. Propulsion Shielding? 16452 | -4/Factory | Entered Upper Caves 16459 | -4/Upper Caves | A Derelict revealed a hidden shortcut to "reach the base" 16459 | -4/Upper Caves | Entered Warlord 16470 | -4/Warlord | System corruption cleaned by Quarantine Array 16599 | -4/Warlord | Met Warlord 16602 | -4/Warlord | Opened Warlord's prototype stash 16604 | -4/Warlord | Found Prototype Reactor 16618 | -4/Warlord | Found Prototype Processor 16618 | -4/Warlord | Identified Exp. Target Analyzer 16620 | -4/Warlord | Found Prototype Device 16620 | -4/Warlord | Identified Exp. Focal Shield 16624 | -4/Warlord | Warlord's base attacked by MAIN.C 16630 | -4/Warlord | Found Prototype Hackware 16973 | -4/Warlord | Build established: Hacker-Gladiator 16974 | -4/Warlord | Warlord forces counterattacked 16990 | -4/Warlord | Opened side exit 16998 | -4/Warlord | Discovered new exit (range 10) 17024 | -4/Warlord | Spotted Executioner 17024 | -4/Warlord | Spotted Striker 17024 | -4/Warlord | Spotted Striker 17029 | -4/Warlord | Entered Proximity Caves 17208 | -3/Proximity Caves | Discovered new exit (range 8) 17212 | -3/Proximity Caves | Entered Research 17212 | -3/Research | Evolved 2 slots: Power x1, Propulsion x1 17214 | -3/Research | Identified Vortex Chain Reactor 17217 | -3/Research | Identified System Mapper 17233 | -3/Research | Repaired Microactuators 17243 | -3/Research | Repaired Med. Storage Unit 17478 | -3/Research | Identified exit to Research 17543 | -3/Research | System corruption reached 10% 17573 | -3/Research | Lost 3 parts (3u) 17813 | -3/Research | Build established: Gladiator 17941 | -3/Research | Repaired Reaction Control System 18057 | -3/Research | Entered another Research area 18057 | -2/Research | Warlord forces began assault on 0b10 18057 | -2/Research | Evolved 2 slots: Utility x2 18167 | -2/Research | Research machine network offline 18176 | -2/Research | Discovered new exit (range 4) 18176 | -2/Research | Discovered new exit (range 15) 18373 | -2/Research | Borebot progress halted 18420 | -2/Research | Borebot progress halted 18429 | -2/Research | Borebot progress halted 18460 | -2/Research | Borebot progress halted 18657 | -2/Research | Build established: Hacker-Gladiator 18680 | -2/Research | Met up with Warlord 18728 | -2/Research | Identified exit to Testing 18733 | -2/Research | Identified exit to Access 18736 | -2/Research | Entered Access 18736 | -1/Access | Evolved 2 slots: Utility x2 18812 | -1/Access | Garrison activated, responded to threat 18852 | -1/Access | Identified exit to Command 18910 | -1/Access | Repaired Exp. Propulsion Shielding 18932 | -1/Access | Repaired Reaction Control System 19588 | -1/Access | System corruption reached 10% 19680 | -1/Access | Spotted B-99 Colossus 19680 | -1/Access | Befriended a Behemoth using the annoying Tinkerer's hack 19682 | -1/Access | Spotted B-99 Colossus 19683 | -1/Access | Befriended a Behemoth using the annoying Tinkerer's hack 19745 | -1/Access | Entered Command 19745 | -1/Command | Accompanied by 2 allies 19793 | -1/Command | Repaired Imp. Utility Shielding 20012 | -1/Command | Repaired Centrium Greatsword 20044 | -1/Command | P-80 Master assimilated allied B-99 Colossus 20132 | -1/Command | Crushed by falling debris 20247 | -1/Command | Discovered new exit (range 4) 20252 | *** | Escaped! Last Messages --------------- 20107_ System corrupted: Matter fused (-8). 20114_ System corrupted: Centrium Greatsword targeting data glitched. 20122_ System corrupted: Energy discharge (-20). 20129_ System corrupted: Centrium Greatsword targeting data glitched. 20132_ The unstable cave ceiling collapses. 20132_ Crushed by falling debris. 20139_ MON>UEU>HV%N 85A|GC:NV/ZNV4 E9#X%#J 20162_ System corrupted: Heat flow error (+184). 20181_ System corrupted: IFF burst signal emitted. 20198_ P2YLJYTCC,DA,7O:3F>MWQYUPZLOPHD5JTFL=IN 20214_ J2 UYBQYEI HDPXVM